Cogmind - Beta 17.1 @@@ ROGUE MODE // 2026.09.16 @ 17:05:27 Player: Niamak Result: Destroyed by UZ-95U(R) with Subdweller Beam Cannon Performance ------------- Evolutions (0) 0 Regions Visited (3) 600 Robots Destroyed (11) 55 Value Destroyed (360) 360 Prototype IDs (0) 0 Alien Tech Used (0) 0 Bonus (0) 0 TOTAL SCORE: 1015 Bonus ------- None Cogmind --------- Core Integrity 0/250 Matter 194/300 Energy 246/250 System Corruption 0% Temperature Cool (9) Movement Treading (260) Ox1 Location -10/Subcaves Parts ------- > --- POWER (1) -------- Ion Engine > --- PROPULSION (2) --- Spiked Treads > --- UTILITY (2) ------ Medium Storage Unit > --- WEAPON (2) ------- Light Cannon Light Cannon > --- INVENTORY (10) --- Ion Engine Improved Ion Engine Subdweller Power Source Hover Unit Scrap Shield Field Recycling Unit (72) Grenade Launcher Peak State ------------ > --- POWER ------------ Ion Engine > --- PROPULSION ------- Light Treads Spiked Treads > --- UTILITY ---------- Medium Storage Unit Makeshift Kinetic Plating > --- WEAPON ----------- Light Cannon Light Cannon > --- INVENTORY -------- Ion Engine Improved Ion Engine Subdweller Power Source Hover Unit Scrap Shield Field Recycling Unit Light Cannon Light Cannon Grenade Launcher [Rating: 12] Favorites ----------- Power Ion Engine Engine Ion Engine Propulsion Light Treads Treads Light Treads Utility Medium Storage Unit Device Improved Terrain Scanner Storage Medium Storage Unit Protection Hardened Light Armor Plating Weapon Light Cannon Energy Gun Medium Laser Ballistic Gun Light Assault Rifle Ballistic Cannon Light Cannon Launcher Grenade Launcher Build | -11 -10 -10 -10 ------- Run | Yrd Mat Min Sub Slots Evolved . | . . . . Power . | . . . . Propulsion . | . . . . Utility . | . . . . Weapon . | . . . . Parts Attached 22 | 7 5 4 6 Power 2 | 1 . 1 . Engine 2 | 1 . 1 . Core . | . . . . Reactor . | . . . . Propulsion 5 | 2 . 1 2 Treads 5 | 2 . 1 2 Leg . | . . . . Wheel . | . . . . Hover . | . . . . Flight . | . . . . Utility 7 | 2 3 . 2 Device 2 | 1 1 . . Storage 2 | 1 1 . . Processor . | . . . . Hackware . | . . . . Protection 3 | . 1 . 2 Artifact . | . . . . Weapon 8 | 2 2 2 2 Energy Gun 1 | 1 . . . Energy Cannon . | . . . . Ballistic Gun 1 | 1 . . . Ballistic Cannon 5 | . 2 1 2 Launcher 1 | . . 1 . Special Weapon . | . . . . Impact Weapon . | . . . . Slashing Weapon . | . . . . Piercing Weapon . | . . . . Special Melee Weapon . | . . . . Unidentified Prototypes . | . . . . Parts Lost 10 | . . 1 9 Power . | . . . . Propulsion 4 | . . 1 3 Utility 3 | . . . 3 Weapon 3 | . . . 3 Highest Loss Streak 4 | . . 1 4 To Critical Strikes . | . . . . Average Backups 8 | 2 6 9 8 Power 2 | 1 1 1 2 Propulsion . | . . . . Utility 2 | . 2 4 1 Weapon 3 | 1 2 4 3 Tool/Special . | . . . . Unused Backups 8 | . 2 1 5 Power 3 | . . . 3 Propulsion 1 | . . . 1 Utility 3 | . 1 1 1 Weapon 1 | . 1 . . Tool/Special . | . . . . Average Slot Usage (%) 95 | . 100 81 97 Engine 14 | . 14 14 14 Treads 25 | . 28 18 26 Device 1 | . 12 . . Storage 14 | . 14 14 14 Protection 11 | . 1 5 13 Ballistic Cannon 26 | . 11 27 28 Peak Build Rating 12 | 9 10 9 12 Average Rating 9 | 5 9 7 9 On Entrance 6 | . 9 9 9 Avg Prop Armor Cover (%) . | . . . . Naked Turns . | . . . . Heaviest Build 29 | 14 29 29 28 Greatest Support 40 | 40 40 40 40 Greatest Overweight (x) 8 | 1 . 8 1 Average Overweight (x) . | . . . . Largest Inventory Capacity 10 | 8 10 10 10 Average Capacity 9 | 7 9 10 10 Most Carried 10 | 7 10 10 10 Average Carried 8 | 2 6 9 8 Final Capacity 10 | 8 10 10 10 Final Carried 10 | 2 10 9 8 Class Distribution -------------------- 100% | Mutant Dominant Class ---------------- Mutant | -10/Materials Mutant | -10/Mines Mutant | -10/Subcaves Resources | -11 -10 -10 -10 ----------- Run | Yrd Mat Min Sub Matter Collected 648 | 272 23 107 246 Remotely . | . . . . Salvage Created 311 | 27 144 23 117 Parts 16 | 3 5 . 8 Haulers Intercepted . | . . . . Recyclers Shooed 1 | . 1 . . Parts Field Recycled 25 | . 14 11 . Retrieved Matter 177 | . 118 59 . Parts Self-Destructed . | . . . . Prevented . | . . . . Parts Restored . | . . . . Kills | -11 -10 -10 -10 ------- Run | Yrd Mat Min Sub Combat Hostiles Destroyed 25 | . 2 17 6 Guns 2 | . 2 . . Cannons 7 | . . 1 6 AOE 16 | . . 16 . Classes Destroyed 5 | 1 2 1 1 Tunneler 1 | 1 . . . Watcher 2 | . 2 . . Grunt 2 | . 2 . . Subdweller 6 | . . . 6 Assembled 17 | . . 17 . Best Kill Streak 17 | 1 2 17 3 Combat Bots Only 17 | . 2 17 3 Max Kills in Single Turn 3 | 1 1 3 1 Gunslinging . | . . . . Exploded 3 | . . 3 . Melee . | . . . . Uniques/NPCs Destroyed . | . . . . Combat | -11 -10 -10 -10 -------- Run | Yrd Mat Min Sub Hostile Shots Fired 113 | . 8 38 67 Missed 26 | . 2 10 14 Hits 87 | . 6 28 53 Melee 1 | . . 1 . Projectile 86 | . 6 27 53 AOE 5 | . . . 5 Critical Strikes 1 | . . 1 . Damage Taken 1973 | . 76 453 1444 Core 271 | . 15 48 208 Absorbed by Shields . | . . . . Ignored by Resistances 47 | . . . 47 Core Remaining (%) 100 | 100 . . . Volleys Fired 66 | 2 16 9 39 Largest 2 | 2 2 2 2 Hottest 70 | 70 70 60 60 Shots Fired 123 | 4 31 10 78 Gun 29 | 4 25 . . Cannon 86 | . 6 2 78 Launcher 8 | . . 8 . Special . | . . . . Kinetic 101 | 2 19 2 78 Thermal 14 | 2 12 . . Explosive 8 | . . 8 . Electromagnetic . | . . . . Robot Hit Streak 22 | 2 6 2 22 Robot Miss Streak 7 | 2 7 3 2 Penetration Max . | . . . . Secondary Targets 1 | . 1 . . Max Gunslinging Chain 1 | . 1 . . Shots Hit Robots 79 | 2 17 2 58 Core Hits 57 | 1 7 36 13 Critical Kills . | . . . . Critical Parts Destroyed . | . . . . Critical Strikes 3 | . 1 . 2 Blast 3 | . 1 . 2 Melee Attacks . | . . . . Impact . | . . . . Slashing . | . . . . Piercing . | . . . . Sneak Attacks . | . . . . Combat Hostiles . | . . . . Follow-up Attacks . | . . . . Damage Inflicted 2280 | 31 233 986 1030 Guns 187 | 31 156 . . Cannons 1114 | . 66 18 1030 Explosions 968 | . . 968 . Melee . | . . . . Ramming 11 | . 11 . . Kinetic 1202 | 19 135 18 1030 Thermal 99 | 12 87 . . Explosive 968 | . . 968 . Electromagnetic . | . . . . Impact . | . . . . Slashing . | . . . . Piercing . | . . . . Highest Corruption . | . . . . Average Corruption . | . . . . Corruption Purged . | . . . . Corruption Blocked . | . . . . Overload Shots . | . . . . Overflow Damage 1 | . 1 . . Projectiles 1 | . 1 . . Explosions . | . . . . Melee . | . . . . Knockbacks 4 | . . . 4 Impact . | . . . . Kinetic 4 | . . . 4 Secondary . | . . . . Self-Inflicted Damage 33 | . . 33 . Shots 1 | . . 1 . Rammed 1 | . 1 . . Targets Rammed 1 | . 1 . . Kicked . | . . . . Crushed . | . . . . Highest Temperature 212 | 40 212 15 . Average Temperature 85 | 20 100 10 . Received Heat Transfer 180 | . 42 . 138 Siege Activations . | . . . . Martial Activations . | . . . . Shielding Activations . | . . . . Robots Disrupted . | . . . . Combat Hostiles . | . . . . Robots Corrupted . | . . . . Combat Hostiles . | . . . . Parts Fried . | . . . . Impact Corruptions . | . . . . Robots Melted . | . . . . Combat Hostiles . | . . . . Parts Melted . | . . . . Heat Transferred 296 | 37 259 . . Parts Sabotaged . | . . . . Parts Stolen . | . . . . Parts Stripped . | . . . . Power Chain Reactions . | . . . . Alert | -11 -10 -10 -10 ------- Run | Yrd Mat Min Sub Maximum Alert Level . | . . . . Low Security (%) 100 | 100 100 100 . Level 1 . | . . . . Level 2 . | . . . . Level 3 . | . . . . Level 4 . | . . . . Level 5 . | . . . . High Security . | . . . . Max Security . | . . . . Peak Influence 40 | 5 40 13 . Initial . | . . . . Average 4 | . 12 . . Influence Increases 101 | 5 72 24 . Destroy 0b10 Robot/C 40 | . 40 . . Destroy 0b10 Robot/NC 15 | 5 10 . . Destroy Leader 14 | . 14 . . Successful Hack 8 | . 8 . . Destroy Structure 24 | . . 24 . Influence Decreases 101 | 5 72 24 . Time Decay 91 | 5 72 14 . Lost Part 10 | . . 10 . Squads Dispatched . | . . . . Investigation . | . . . . Extermination . | . . . . Reinforcement . | . . . . Assault . | . . . . Garrison . | . . . . Intercept . | . . . . Searches Triggered . | . . . . Construction Impeded . | . . . . Haulers Reinforced . | . . . . Active Scanning Responses . | . . . . Cargo Convoy Interrupts . | . . . . Stealth | -11 -10 -10 -10 --------- Run | Yrd Mat Min Sub Distress Signals 1 | . 1 . . Communications Jammed . | . . . . Distress Signals . | . . . . Times Spotted 34 | . 6 19 9 Peak Tracking Total 18 | . 4 18 3 Tactical Retreats 1 | . . . 1 Traps | -11 -10 -10 -10 ------- Run | Yrd Mat Min Sub Traps Triggered 2 | . . . 2 Indirectly . | . . . . Trap Hack Attempts . | . . . . Triggered . | . . . . Disarmed . | . . . . Reprogrammed . | . . . . Reused . | . . . . Traps Extracted . | . . . . Installed . | . . . . Triggered . | . . . . Machines | -11 -10 -10 -10 ---------- Run | Yrd Mat Min Sub Machines Disabled . | . . . . Max in Single Turn . | . . . . Machines Repaired . | . . . . Machines Dismantled . | . . . . Machines Sabotaged . | . . . . Overloaded Fab Kills . | . . . . Hacking | -11 -10 -10 -10 --------- Run | Yrd Mat Min Sub Machines Accessed 4 | . 3 . 1 Terminals 3 | . 3 . . Fabricators . | . . . . Repair Stations . | . . . . Recycling Units . | . . . . Scanalyzers . | . . . . Garrison Access . | . . . . Total Hacks 9 | . 5 . 4 Successful 7 | . 3 . 4 Failed 2 | . 2 . . Catastrophic . | . . . . Database Lockouts . | . . . . Manual . | . . . . Terminals 5 | . 5 . . Fabricators . | . . . . Repair Stations . | . . . . Recycling Units . | . . . . Scanalyzers . | . . . . Garrison Access . | . . . . Terminal Hacks 7 | . 3 . 4 Record 4 | . . . 4 Emergency Access Points 1 | . 1 . . Locate Traps 2 | . 2 . . Fabricator Hacks . | . . . . Repair Station Hacks . | . . . . Recycling Unit Hacks . | . . . . Scanalyzer . | . . . . Garrison Access Hacks . | . . . . Unauthorized Hacks . | . . . . Terminals . | . . . . Fabricators . | . . . . Repair Stations . | . . . . Recycling Units . | . . . . Scanalyzers . | . . . . Garrison Access . | . . . . Data Cores Recovered . | . . . . Used . | . . . . Hacking Detections 3 | . 3 . . Full Trace Events . | . . . . Feedback Events . | . . . . Feedback Blocked . | . . . . Robot Schematics Acquired . | . . . . Robots Built . | . . . . Authchips . | . . . . Time . | . . . . Total Robot Build Rating . | . . . . Part Schematics Acquired . | . . . . Parts Built . | . . . . Authchips . | . . . . Time . | . . . . Total Part Build Rating . | . . . . Part Studies Acquired . | . . . . Parts Repaired . | . . . . Time . | . . . . Parts Recycled . | . . . . Recycled Matter . | . . . . Retrieved Matter . | . . . . Retrieved Components . | . . . . Parts Scanalyzed . | . . . . Part Schematics Acquired . | . . . . Parts Damaged . | . . . . Bothacking | -11 -10 -10 -10 ------------ Run | Yrd Mat Min Sub Used RIF Installer . | . . . . Robots Hacked . | . . . . Non-combat . | . . . . Combat . | . . . . Robot Hacks Applied . | . . . . Relay Couplers Released . | . . . . Fabnet Peak Effective % . | . . . . Robots Rewired . | . . . . Allies Hacked . | . . . . Hacks Repelled . | . . . . Allies | -11 -10 -10 -10 -------- Run | Yrd Mat Min Sub Total Allies . | . . . . Largest Group . | . . . . Highest-Rated Group . | . . . . Highest-Rated Ally . | . . . . Total Orders . | . . . . Ally Attacks . | . . . . Total Damage . | . . . . Kills . | . . . . Allies Corrupted . | . . . . Allies Melted . | . . . . Intel | -11 -10 -10 -10 ------- Run | Yrd Mat Min Sub Active Infowar (turns) 207 | 32 175 . . Terrain 207 | 32 175 . . Robot Analysis Total . | . . . . Derelict Logs Recovered 1 | . . . 1 Drone Launches . | . . . . Drone Recoveries . | . . . . Exploration | -11 -10 -10 -10 ------------- Run | Yrd Mat Min Sub Turns Passed 2465 | 85 249 370 1761 Spaces Moved 1293 | 50 113 153 977 Core 24 | 22 . 2 . Treads 1269 | 28 113 151 977 Legs . | . . . . Wheels . | . . . . Hover . | . . . . Flight . | . . . . Fastest Speed 50 | 50 160 160 160 Average Speed 170 | 128 160 210 167 Slowest Speed 450 | 160 160 450 240 Overloaded Moves . | . . . . Propulsion Burnouts . | . . . . Robots Hopped . | . . . . Potential Cave-ins . | . . . . Cave-ins Triggered . | . . . . Exploration Rate (%) 27 | 4 23 28 54 Regions Visited 3 Branch Regions 2 Pre-discovered Areas 1 | . . . 1 Known Exits Taken . | . . . . Unknown Exits Taken 3 | 1 1 1 . Scrap Searched 3 | . . . 3 Spaces Dug . | . . . . Terrain Destroyed 26 | . . 26 . Melee . | . . . . Projectile . | . . . . AOE 26 | . . 26 . Terrain Rammed . | . . . . Walls Destroyed . | . . . . Machines Disabled . | . . . . Actions | -11 -10 -10 -10 --------- Run | Yrd Mat Min Sub Total 1436 | 67 152 190 1027 Wait 15 | . . 15 . Move 1291 | 49 113 152 977 Hop . | . . . . Pick Up 28 | 9 13 2 4 Fast Attach 3 | . . 2 1 Attach 14 | 7 . 1 6 Detach 1 | . . 1 . Swap 10 | . 5 5 . Drop 8 | . 5 3 . Fire 66 | 2 16 9 39 Melee . | . . . . Ram . | . . . . Kick . | . . . . Crush . | . . . . Escape Stasis . | . . . . Rewire . | . . . . Trap . | . . . . Miscellaneous . | . . . . Route ------- -11/Scrapyard -10/Materials -10/Mines -10/Subcaves History --------- Turn | Location | Event 24 | -11/Scrapyard | Discovered new exit (range 15) 86 | -11/Scrapyard | Entered Materials 315 | -10/Materials | Discovered new exit (range 13) 335 | -10/Materials | Build established: Mutant 335 | -10/Materials | Entered Mines 352 | -10/Mines | Assembled infested the area 367 | -10/Mines | Met a Derelict bent on vengeance 411 | -10/Mines | Destroyed 17 combat bots 606 | -10/Mines | Joined a pair of Derelicts in attacking an 0b10 outpost 699 | -10/Mines | Discovered new exit (range 5) 705 | -10/Mines | Entered Subcaves 1090 | -10/Subcaves | Visited Clippyterm 1095 | -10/Subcaves | Learned 40 Factory zone layouts 1207 | -10/Subcaves | Ambushed by Subdwellers from Twisted Machinery 1661 | -10/Subcaves | Disturbed a concealed Subdweller 1680 | -10/Subcaves | Core integrity fell below 50% 2164 | -10/Subcaves | Shifting Twisted Machinery released Sub. Machine Gun 2206 | -10/Subcaves | Shifting Twisted Machinery released Spk. Treads 2453 | -10/Subcaves | Core integrity fell below 20% 2466 | -10/Subcaves | Destroyed by UZ-95U(R) with Subdweller Beam Cannon Last Messages --------------- Sub. Machine Gun falls loose from the Twisted Machinery. Spk. Treads falls loose from the Twisted Machinery. 02226_ Acquired Spk. Treads. 02437_ US-HRR(R) Sub. Power Source blasted off. 02442_ Subatomizers dissect the Sub. Power Source. 02449_ US-HRR(R) knocked back. 02450_ Lgt. Cannon destroyed. 02454_ Subatomizers dissect the Sub. Power Source. 02454_ Mak. Kinetic Plating destroyed. 02456_ US-HRR(R) knocked back. 02460_ Lgt. Treads destroyed. 02460_ Lgt. Cannon destroyed. 02463_ US-HRR(R) Sub. Monowheel blasted off. 02463_ US-HRR(R) knocked back. 02464_ Subatomizers dissect the Sub. Power Source. Map ----- +----------------------------------------------------+ | ?????????????????????????????????????????????????? | | ?????????????????????????????????????????????????? | | ?????????????????????????????????????????????????? | | ?????????????????????????????????????????????????? | | ?????????????????????????????????????????????????? | | ?????????????????????????????????????????????????? | | ?????????????????????????????????????????????????? | | ?????????????????????????????????????????????????? | | ?????????????????????????????????????????????????? | | ?????????????????????????????????????????????????? | | ?????????????????????????????????????????????###?? | | ???????????????????????????????????# ???????? ## | | ??????????????????#???????????????# ?????? | | ???????????????? ?????????????# ???????# | | ?????????????? ????????????? ???????# | | ?????????????? % ?????????### ???????# | | ????????????? % ????????## ??????## | | ????????????? ??????## ###??## | | ?????????????? * ?????## #### | | ??????????????? % % ????# ## ## | | ???????????????? % ???## #??# | | ????????????????""" R% ??# ##?# | | ??????????????????# %= %#??# ### | | ??????????????? ## R;### ### | | ???????????????"""" #?# | | ????????????????""" # @ ## ### ## | | ???????????????????# ### ## ## | | ???????????????????### ### # | | ?????????????????????## ### ### # | | ??????????????????????## ##?# ##?## # | | ???????????????????????#####??# ###???# # | | ??????????????????????????????## ##?????## | | ???????????????????????????????# #???????#### | | ???????????????????????????????## #??????????## | | ????????????????????????????????## ##???????????## | | ?????????????????????????????????###?????????????# | | ?????????????????????????????????????????????????? | | ?????????????????????????????????????????????????? | | ?????????????????????????????????????????????????? | | ?????????????????????????????????????????????????? | | ?????????????????????????????????????????????????? | | ?????????????????????????????????????????????????? | | ?????????????????????????????????????????????????? | | ?????????????????????????????????????????????????? | | ?????????????????????????????????????????????????? | | ?????????????????????????????????????????????????? | | ?????????????????????????????????????????????????? | | ?????????????????????????????????????????????????? | | ?????????????????????????????????????????????????? | | ?????????????????????????????????????????????????? | +----------------------------------------------------+ Best States ------------- Heat Dissipation 25 Energy Generation 10 Energy Capacity 250 Matter Stores 300 Matter Capacity 300 Sight Range 16 Terrain Scan Range 16 Terrain Scan Density 10 Armor Coverage 150 Resistance: KI 10 Evasion (%) 40 Recoil Reduction 2 Item Schematics ----------------- None Robot Schematics ------------------ None Fabricated ------------ Nothing Repaired ---------- Nothing Studied --------- None Alien Tech Used ----------------- None Achievements -------------- Exterminator I Survived The Infestation Challenges ------------ None Game ------ Seed CentriumExplosiveJets Manual? 0 Play Time 00:26:16 Cumulative 5.1 hours Start 2026.09.16 @ 16:15:46 End 2026.09.16 @ 17:05:27 Sessions 1 Manual Loads 0 Difficulty Rogue Special Mode None Game No. 4 Rogue 4 Adventurer 0 Explorer 0 Win Type - Total 0 Types 0/0/0/0/0/0/0/0/0/0 Lore% 1 Gallery% 9 Achievement% 9 Wizard Run 0 Options --------- Layout 1 ASCII 0 Keyboard 0 Movement Mouse Keybinds 1 Fullscreen 2 Font 24/Smallcaps Map View 50x35 Zoom Use 0% Tactical HUD 1 Map Filters NONE Filters NONE Steam 0 RUN: 303817d5-5f8b-4a47-8b57-e47293ff0d59